bitfinex-derivatives/quotes_ETHF0:USTF0_20241230
["timestamp","ask_amount","ask_price","bid_price","bid_amount"]
[1735583489145,0.29471,3396.4,3396.0,3.38018095]
[1735583489340,3.2078,3396.7,3396.2,0.29472]
[1735583489543,0.29469,3396.6,3396.3,0.29471]
[1735583489947,0.2947,3396.5,3396.2,0.29472]
[1735583490448,3.2078,3396.7,3396.1,1.1516]
[1735583490646,0.29474,3396.0,3395.6,3.12855095]
[1735583490843,0.29477,3395.7,3395.5,4.61938]
[1735583491253,0.29477,3395.6,3395.5,4.3246]
[1735583491552,0.29477,3395.6,3395.5,3.7805]
[1735583493546,0.29477,3395.7,3395.5,3.7805]
[1735583493749,0.29477,3395.7,3395.5,4.07528]
[1735583494453,3.2078,3395.9,3395.5,3.7805]
[1735583494454,0.29477,3395.6,3395.5,3.7805]
[1735583494952,0.29477,3395.7,3395.5,4.07528]
[1735583495742,3.2078,3395.9,3395.5,3.7805]
[1735583495947,0.29477,3395.6,3395.5,3.7805]
[1735583496943,3.2078,3395.9,3395.5,3.7805]
[1735583497148,2.30366261,3396.3,3395.7,0.29476]
[1735583497149,0.29474,3396.0,3395.7,0.29476]
[1735583497450,6.24827261,3396.3,3395.5,3.7805]
[1735583497957,0.29474,3396.0,3395.9,0.29475]
[1735583498255,3.2078,3396.3,3395.8,0.29475]
[1735583498550,0.29477,3395.6,3395.5,4.07528]
[1735583498744,0.29474,3396.0,3395.8,0.29475]
[1735583499150,3.2078,3396.3,3395.6,2.83378095]
[1735583499351,0.29471,3396.3,3396.2,0.29472]
[1735583499652,2.30366261,3396.4,3396.3,0.29471]
[1735583499956,0.29471,3396.3,3396.2,0.29472]
[1735583500251,2.30366261,3396.4,3396.2,0.29472]
[1735583500451,2.59837261,3396.4,3396.2,0.29472]
[1735583500755,3.2078,3396.5,3396.4,0.2947]
[1735583500959,2.30366261,3396.9,3396.7,0.29467]
[1735583500960,0.29467,3396.8,3396.7,0.29467]
[1735583501256,2.30366261,3396.9,3396.8,0.29467]
[1735583501552,2.30366261,3396.9,3396.8,3.12845095]
[1735583501951,2.30366261,3396.9,3396.8,6.33625095]
[1735583502151,2.30366261,3397.4,3397.3,0.29463]
[1735583502651,0.29463,3397.3,3397.2,0.29463]
[1735583502853,0.29463,3397.2,3397.1,1.377]
[1735583503249,3.50243,3397.2,3397.1,1.377]
[1735583503654,0.29463,3397.2,3397.1,1.377]
[1735583503850,3.2078,3397.2,3396.7,7.22555449]
[1735583504051,0.29467,3396.8,3396.7,6.93087449]
[1735583504261,0.29467,3396.9,3396.7,6.93087449]
[1735583504557,0.29467,3396.8,3396.7,6.93087449]
[1735583504755,3.2078,3397.2,3396.5,9.10262132]
[1735583504756,0.29468,3396.7,3396.5,0.29469]
[1735583504957,0.29468,3396.7,3396.6,0.29469]
[1735583505254,0.29469,3396.6,3396.4,1.6707]
[1735583505552,0.73663,3397.1,3396.4,1.376]
[1735583505553,0.73664,3397.0,3396.4,1.376]
[1735583505758,0.29469,3396.6,3396.4,1.6707]
[1735583505955,0.29468,3396.7,3396.5,0.2947]
[1735583506254,0.29467,3396.8,3396.6,0.29468]
[1735583506453,0.29467,3396.9,3396.7,0.29467]
[1735583506854,0.5748,3397.1,3396.6,0.29468]
[1735583506855,0.29468,3396.8,3396.6,0.29468]
[1735583507052,0.29468,3396.8,3396.5,40.8]
[1735583507359,0.29466,3397.0,3396.8,0.29467]
[1735583507559,0.29466,3396.9,3396.4,4.20978095]
[1735583507758,0.29466,3396.9,3396.7,0.29467]
[1735583507961,0.29465,3397.0,3396.8,0.29466]
[1735583508560,0.77038508,3397.4,3396.4,45.00978095]
[1735583508561,2.84316261,3397.4,3396.4,45.00978095]
[1735583508761,2.84316261,3397.4,3396.6,3.2078]
[1735583508957,0.29466,3397.0,3396.8,0.29467]
[1735583509159,0.29466,3397.0,3396.9,0.29466]
[1735583509462,2.84316261,3397.4,3397.0,0.29465]
[1735583509463,0.29464,3397.2,3397.0,0.29465]
[1735583509859,2.84316261,3397.4,3396.6,3.2078]
[1735583509860,0.5395,3397.4,3396.6,3.2078]
[1735583510160,0.29464,3397.2,3397.0,0.29465]
[1735583511351,3.2078,3397.6,3397.0,3.2078]
[1735583511657,2.30366261,3397.7,3397.6,0.2946]
[1735583511858,2.44261745,3397.8,3397.7,0.29459]
[1735583512357,6.87725333,3398.6,3397.7,40.8]
[1735583512358,4.61018774,3398.6,3397.7,40.8]
[1735583512561,0.29453,3398.5,3398.3,0.29453]
[1735583513158,0.29453,3398.5,3398.1,3.2078]
[1735583513159,4.61018774,3398.6,3398.5,0.29452]
[1735583513462,4.61018774,3398.6,3398.5,4.87632]
[1735583513764,4.61018774,3398.6,3398.5,9.87632]
[1735583514058,5.76330852,3398.8,3398.5,50.3818]
[1735583514360,4.61429744,3399.3,3398.7,0.2945]
[1735583514566,4.61429744,3399.3,3399.2,3.50226]
[1735583515262,4.61429744,3399.3,3399.2,8.50226]
[1735583515465,4.61429744,3399.3,3399.2,3.50226]
[1735583516165,0.29441,3399.9,3399.8,0.29441]
[1735583516354,0.2944,3400.0,3399.8,0.29441]
[1735583516556,0.2944,3400.0,3399.9,0.2944]
[1735583516867,0.29441,3399.9,3399.7,0.29441]
[1735583517060,0.29441,3399.9,3399.8,40.8]
[1735583517363,3.94368,3400.5,3399.6,4.87622]
[1735583517364,0.29442,3399.8,3399.6,4.87622]
[1735583517661,0.7359,3400.4,3399.7,0.29442]
[1735583517662,0.29436,3400.4,3399.7,0.29442]
[1735583517858,0.29442,3399.8,3399.6,45.67622]
[1735583518055,0.29436,3400.4,3399.6,45.3818]
[1735583518260,0.29439,3400.1,3399.9,0.29439]
[1735583518564,0.29439,3400.1,3399.7,2.83378095]
[1735583518864,3.2078,3400.5,3399.9,0.29439]
[1735583519366,0.29439,3400.1,3399.9,0.29439]
[1735583519959,0.29438,3400.2,3399.9,0.29439]
[1735583520268,0.29438,3400.2,3399.6,4.5818]
[1735583520269,3.2078,3400.5,3400.4,0.29436]
[1735583520962,1.0847,3400.8,3400.7,0.29433]
[1735583521669,1.0847,3400.8,3400.5,1.373]
[1735583522163,1.0847,3400.8,3400.6,0.29433]
[1735583522866,1.37902,3400.8,3400.5,1.66735]
[1735583523059,1.0847,3400.8,3400.5,1.373]
[1735583523463,1.0847,3400.8,3400.7,0.29433]
[1735583523869,1.0847,3400.8,3400.5,1.373]
[1735583524460,1.0847,3400.8,3400.7,0.29433]
[1735583525359,0.5379,3400.8,3400.7,0.29433]
[1735583525562,3.2078,3402.3,3400.7,5.0]
[1735583525764,3.2078,3402.3,3401.9,2.83378095]
[1735583526066,3.2078,3402.8,3402.0,4.5808]
[1735583526366,0.29416,3402.7,3402.2,0.2942]
[1735583526566,3.2078,3402.8,3402.0,4.5808]
[1735583526567,3.50195,3402.8,3402.0,4.5808]
[1735583526863,3.50195,3402.8,3402.4,0.29418]
[1735583527066,0.29416,3402.7,3402.4,40.8]
[1735583527364,2.83378095,3402.7,3401.8,1.373]
[1735583527557,0.29422,3402.1,3401.8,1.373]
[1735583527760,3.2078,3402.4,3401.8,1.373]
[1735583527761,0.5405,3402.0,3401.8,1.373]
[1735583527961,0.5405,3402.0,3401.9,0.29423]
[1735583528161,0.5405,3402.0,3401.8,1.373]
[1735583528367,0.2942,3402.3,3401.8,1.373]
[1735583528368,3.2078,3402.4,3402.3,0.29419]
[1735583528566,3.50195,3402.8,3402.4,0.29418]
[1735583528866,1.6728,3402.9,3402.4,3.2078]
[1735583529060,1.1044,3402.9,3402.8,0.29415]
[1735583529261,1.1044,3402.9,3402.8,1.66615]
[1735583529457,0.5405,3402.9,3402.8,1.66615]
[1735583529661,3.2078,3403.2,3402.9,0.29413]
[1735583529863,3.2078,3403.2,3403.1,0.29412]
[1735583530971,3.2078,3403.2,3402.8,1.372]
[1735583531170,3.2078,3403.2,3402.3,1.372]
[1735583531472,3.2078,3402.4,3401.7,1.372]
[1735583531665,0.2942,3402.2,3401.6,1.372]
[1735583531865,0.29422,3402.0,3401.7,0.29424]
[1735583532165,3.2078,3402.0,3401.1,3.2078]
[1735583532363,0.29429,3401.2,3401.1,3.2078]
[1735583532568,0.29429,3401.3,3401.1,1.372]
[1735583532764,3.2078,3401.6,3401.1,1.372]
[1735583532960,0.5959,3401.5,3401.1,1.372]
[1735583533666,3.2078,3402.0,3401.3,2.83378095]
[1735583533870,0.29426,3401.6,3401.3,2.83378095]
[1735583534064,3.2078,3402.0,3401.3,2.83378095]
[1735583534466,3.2078,3402.0,3401.4,1.372]
[1735583534665,0.29426,3401.5,3401.4,1.372]
[1735583535465,3.2078,3402.0,3401.4,4.5798]
[1735583535665,0.29425,3401.7,3401.4,4.87406]
[1735583535860,3.2078,3402.0,3401.5,0.29426]
[1735583536066,3.2078,3402.0,3401.4,4.5798]
[1735583536364,0.29426,3401.5,3401.4,4.5798]
[1735583537263,0.29426,3401.5,3400.5,0.083]
[1735583537264,0.29431,3401.0,3400.9,2.83378095]
[1735583537469,3.2078,3401.5,3400.9,4.20578095]
[1735583537470,0.2943,3401.1,3400.9,4.20578095]
[1735583537778,0.5819,3401.4,3400.9,4.20578095]
[1735583537973,0.5657,3401.3,3400.9,4.20578095]
[1735583538776,0.5657,3401.3,3400.9,4.50009095]
[1735583538973,0.2943,3401.1,3400.9,4.50009095]
[1735583539174,0.29431,3401.0,3400.9,4.50009095]
[1735583539673,0.29431,3401.0,3400.9,4.20578095]
[1735583539868,0.5657,3401.3,3400.5,2.83378095]
[1735583540065,0.29433,3400.7,3400.5,2.83378095]
[1735583540374,0.29433,3400.7,3400.6,40.8]
[1735583540967,0.29431,3401.0,3400.8,0.29431]
[1735583541169,0.5657,3401.3,3400.6,40.8]
[1735583541371,0.29433,3400.7,3400.6,40.8]
[1735583542070,3.2078,3401.0,3400.6,40.8]
[1735583542268,0.5657,3401.3,3400.9,2.83378095]
[1735583542470,0.29429,3401.2,3401.0,0.2943]
[1735583542778,0.29429,3401.2,3400.9,2.83378095]
[1735583542976,0.85999,3401.3,3401.0,0.2943]
[1735583543270,0.5657,3401.3,3401.2,0.29429]
[1735583543877,0.5657,3401.3,3401.1,0.29429]
[1735583544078,0.5819,3401.4,3400.9,2.83378095]
[1735583544271,0.5819,3401.4,3401.3,3.12806095]
[1735583544666,0.5819,3401.4,3401.3,43.92806095]
[1735583546172,0.87617,3401.4,3401.3,40.8]
[1735583546372,3.7897,3401.4,3400.9,2.83378095]
[1735583546566,0.29429,3401.2,3401.1,0.2943]
[1735583546774,0.5819,3401.4,3401.0,40.8]
[1735583546971,0.2943,3401.1,3401.0,40.8]
[1735583547481,0.2943,3401.1,3401.0,41.09431]
[1735583547772,0.5558,3401.3,3400.9,3.12809095]
[1735583547983,0.29434,3400.6,3400.5,2.83378095]
[1735583548173,0.29435,3400.5,3400.4,3.2078]
[1735583548380,3.94359,3401.0,3400.4,3.2078]
[1735583548381,0.29435,3400.6,3400.5,0.29434]
[1735583548574,0.29435,3400.5,3400.4,4.87215]
[1735583549378,0.29435,3400.5,3400.0,0.91885716]
[1735583549379,0.29438,3400.1,3400.0,3.2078]
[1735583549678,0.29438,3400.1,3399.4,4.5349298]
[1735583549679,0.29441,3399.8,3399.7,4.5778]
[1735583549872,0.29441,3399.8,3399.7,4.87222]
[1735583550184,0.29441,3399.8,3399.7,1.66442]
[1735583551377,0.73592,3400.3,3399.8,0.2944]
[1735583551378,0.29441,3399.9,3399.8,0.2944]
[1735583551882,0.29441,3399.8,3399.7,4.87221]
[1735583552180,3.2078,3400.1,3399.1,2.83378095]
[1735583552380,0.29446,3399.2,3399.1,1.37]
[1735583552684,0.29446,3399.2,3399.1,42.17]
[1735583553773,0.29446,3399.3,3399.1,7.41158095]
[1735583553978,0.29446,3399.2,3399.1,4.20378095]
[1735583554389,0.29446,3399.2,3399.1,4.49825095]
[1735583554682,0.29446,3399.3,3399.2,0.29445]
[1735583554877,0.5946,3399.5,3399.4,0.29444]
[1735583555183,0.29443,3399.6,3399.5,0.29443]
[1735583555582,0.29443,3399.6,3399.5,41.09444]
[1735583555884,0.73601,3399.9,3399.1,7.41158095]
[1735583556179,0.2945,3398.8,3398.7,7.357]
[1735583556689,0.2945,3398.8,3398.6,9.1127298]
[1735583556983,1.1215,3399.1,3398.7,0.2945]
[1735583557183,1.1215,3399.1,3399.0,0.29448]
[1735583557378,0.5568,3399.1,3399.0,0.29448]
[1735583557585,0.85127,3399.1,3398.9,0.29448]
[1735583558081,0.85127,3399.1,3399.0,40.8]
[1735583558986,0.5568,3399.1,3399.0,41.09448]
[1735583559779,0.85127,3399.1,3399.0,40.8]
[1735583560086,0.29452,3398.5,3398.4,4.5349298]
[1735583560483,0.29453,3398.4,3398.3,4.5349298]
[1735583561284,0.29453,3398.4,3398.3,4.8294698]
[1735583561681,3.2078,3398.7,3398.1,1.37]
[1735583561990,3.2078,3398.7,3398.6,0.29451]
[1735583562190,0.5681,3398.9,3398.8,0.2945]
[1735583562683,0.2945,3398.8,3398.6,3.50231]
[1735583562889,0.2945,3398.8,3398.6,0.29451]
[1735583563491,0.86259,3398.9,3398.6,0.2945]
[1735583563687,0.5681,3398.9,3398.8,0.2945]
[1735583564088,0.5568,3399.1,3398.7,2.83378095]
[1735583564286,0.5568,3399.1,3399.0,0.29448]
[1735583565401,0.85127,3399.1,3399.0,0.29448]
[1735583565995,0.29448,3399.0,3398.9,0.29449]
[1735583567200,0.5568,3399.1,3398.2,4.5349298]
[1735583567396,0.29454,3398.3,3398.2,4.5349298]
[1735583567699,0.29456,3398.1,3398.0,4.5349298]
[1735583568300,0.5138,3398.1,3398.0,4.8294998]
[1735583568600,0.80836,3398.1,3398.0,4.8294998]
[1735583568801,0.80836,3398.1,3398.0,45.3349298]
[1735583569098,0.80836,3398.1,3398.0,40.8]
[1735583569498,0.5138,3398.1,3397.7,1.37]
[1735583569698,0.29458,3397.9,3397.7,1.37]
[1735583569896,0.5138,3398.1,3397.7,1.37]
[1735583570095,0.5138,3398.1,3397.9,0.29457]
[1735583570096,0.29457,3398.0,3397.9,0.29457]
[1735583570297,0.5138,3398.1,3397.8,0.29458]
[1735583570594,3.2078,3398.0,3397.1,3.2078]
[1735583570797,0.73646,3397.8,3397.1,3.2078]
[1735583571000,0.29463,3397.3,3397.1,3.50244]
[1735583571197,0.29465,3397.0,3396.8,4.8295998]
[1735583571397,0.29465,3397.0,3396.9,1.368]
[1735583571701,0.5529,3397.2,3397.1,0.29464]
[1735583571900,0.29464,3397.1,3397.0,0.29465]
[1735583572102,0.5529,3397.2,3396.9,0.29466]
[1735583572296,0.5423,3397.1,3396.7,1.66268]
[1735583572602,0.29467,3396.8,3396.7,1.368]
[1735583573000,0.29466,3396.9,3396.7,1.368]
[1735583573203,0.29466,3396.9,3396.7,1.66267]
[1735583573404,0.29466,3396.9,3396.8,0.29467]
[1735583573602,0.29466,3397.0,3396.7,1.368]
[1735583573794,4.04475,3397.1,3397.0,0.29465]
[1735583574806,3.7501,3397.1,3397.0,0.29465]
[1735583575002,0.5423,3397.1,3397.0,0.29465]
[1735583575207,0.29467,3396.8,3396.7,4.5758]
[1735583575596,0.5423,3397.1,3396.0,3.2078]
[1735583575597,6.58388095,3397.1,3396.0,3.2078]
[1735583575801,3.2078,3396.7,3396.0,3.2078]
[1735583576008,0.29473,3396.1,3396.0,3.2078]
[1735583576606,0.29472,3396.2,3396.0,0.29473]
[1735583576906,3.2078,3396.3,3396.2,0.29472]
[1735583577308,0.29472,3396.2,3396.1,0.29472]
[1735583577502,0.29473,3396.1,3396.0,41.09474]
[1735583577704,0.29473,3396.1,3396.0,40.8]
[1735583578197,4.2665,3396.3,3396.0,40.8]
[1735583578402,4.2665,3396.3,3396.2,0.29472]
[1735583578998,1.0587,3396.3,3396.2,0.29472]
[1735583581309,1.0587,3396.3,3396.0,40.8]
[1735583581498,0.5274,3396.3,3396.2,0.29472]
[1735583582016,0.5531,3396.9,3396.7,0.29468]
[1735583582312,1.1062,3396.9,3396.8,0.29467]
[1735583582609,1.1062,3396.9,3396.3,3.94459]
[1735583582610,1.40086,3396.9,3396.3,3.2078]
[1735583582805,1.1062,3396.9,3396.6,0.29468]
[1735583583107,1.1062,3396.9,3396.3,3.2078]
[1735583583308,3.2078,3397.1,3397.0,0.29465]
[1735583583904,3.2078,3397.1,3397.0,41.09465]
[1735583584104,0.5531,3397.4,3397.3,0.29463]
[1735583585404,1.09,3397.9,3397.3,3.2078]
[1735583585706,0.5531,3397.9,3397.8,0.29458]
[1735583586109,0.5256,3398.0,3397.9,0.29457]
[1735583586604,1.0692,3398.7,3398.3,0.29453]
[1735583586801,0.29452,3398.5,3398.3,0.29453]
[1735583587306,0.29452,3398.6,3398.3,0.29453]
[1735583588209,1.0692,3398.7,3397.7,8.14705095]
[1735583588210,0.29454,3398.3,3398.1,0.29455]
[1735583588609,3.2078,3398.4,3398.1,0.29455]
[1735583588912,3.2078,3398.4,3397.7,7.41058095]
[1735583588913,3.2078,3398.4,3398.3,0.29454]
[1735583590004,0.5256,3398.7,3398.6,0.29451]
[1735583590211,0.5256,3398.7,3398.6,1.66351]
[1735583590410,0.534,3399.3,3398.6,1.369]
[1735583590607,0.5434,3399.2,3398.6,1.369]
[1735583590815,0.29448,3399.1,3398.8,0.29449]
[1735583591213,0.5434,3399.2,3398.6,1.369]
[1735583591414,3.2078,3398.9,3398.6,1.369]
[1735583591811,3.2078,3398.9,3398.7,0.2945]
[1735583592117,0.5434,3399.2,3398.6,1.369]
[1735583592421,0.2945,3398.8,3398.6,1.369]
[1735583594219,0.5434,3399.2,3398.6,1.369]
[1735583594412,0.5434,3399.2,3398.6,1.66351]
[1735583595017,0.2945,3398.8,3398.6,1.369]
[1735583595215,0.2945,3398.8,3398.6,1.66351]
[1735583595611,0.5434,3399.2,3398.6,1.66351]
[1735583596015,0.5434,3399.2,3398.6,1.369]
[1735583596211,0.2945,3398.7,3398.6,1.369]
[1735583596523,0.5434,3399.2,3398.6,1.369]
[1735583596820,0.2945,3398.8,3398.6,1.369]
[1735583597217,0.5434,3399.2,3398.6,1.66351]
[1735583597518,0.2945,3398.8,3398.6,1.66351]
[1735583597921,0.29452,3398.6,3398.3,1.368]
[1735583598116,3.2078,3398.9,3398.3,1.368]
[1735583598311,0.29451,3398.7,3398.5,0.29452]
[1735583598721,3.2078,3398.9,3398.3,1.368]
[1735583599121,0.29451,3398.7,3398.5,0.29452]
[1735583599520,3.2078,3398.9,3398.3,1.368]
[1735583599712,0.29451,3398.7,3398.5,0.29452]
[1735583600812,3.2078,3398.9,3398.3,1.368]
[1735583601120,0.5434,3399.2,3398.3,1.368]
[1735583601121,0.83787,3399.2,3399.1,0.29447]
[1735583601920,0.83787,3399.2,3398.7,40.8]
[1735583602114,0.5434,3399.2,3399.1,0.29447]
[1735583602318,3.2078,3399.7,3399.6,0.29443]
[1735583602522,0.5335,3400.2,3399.6,2.10207]
[1735583602721,0.5335,3400.2,3400.1,0.29438]
[1735583602921,0.5336,3400.4,3400.3,0.29437]
[1735583603217,0.29437,3400.3,3400.2,0.29437]
[1735583603619,0.5336,3400.4,3400.2,0.29437]
[1735583603824,0.82796,3400.4,3400.2,0.29437]
[1735583604124,0.82796,3400.4,3400.1,0.29438]
[1735583604125,0.5336,3400.4,3400.1,0.29438]
[1735583604430,0.5336,3400.4,3400.3,0.29437]
[1735583604720,0.5335,3400.6,3400.0,2.83378095]
[1735583604921,0.5335,3400.6,3400.5,0.29435]
[1735583605624,0.5335,3400.6,3400.4,3.2078]
[1735583605625,0.82784,3400.6,3400.4,3.50215]
[1735583605818,0.5335,3400.6,3400.5,0.29435]
[1735583606320,0.29435,3400.5,3400.4,3.2078]
[1735583606623,0.5335,3400.6,3400.4,3.2078]
[1735583606823,0.5335,3400.6,3400.5,0.29435]
[1735583607214,0.5335,3400.6,3400.4,3.2078]
[1735583607420,0.29435,3400.5,3400.4,3.2078]
[1735583607620,0.5335,3400.6,3400.5,0.29435]
[1735583608022,0.82784,3400.6,3400.5,0.29435]
[1735583608221,0.5364,3400.9,3400.0,6.04158095]
[1735583608426,0.5364,3400.9,3400.8,0.29432]
[1735583608732,0.83072,3400.9,3400.8,0.29432]
[1735583609231,0.5364,3400.9,3400.8,0.29432]
[1735583609826,0.83072,3400.9,3400.7,0.29433]
[1735583610326,1.27219,3400.9,3400.0,3.2078]
[1735583610528,0.29438,3400.2,3400.0,4.86819]
[1735583610828,0.5324,3400.1,3400.0,4.86819]
[1735583611224,0.29435,3400.6,3400.4,0.29435]
[1735583611431,0.29436,3400.4,3400.2,0.29437]
[1735583611625,0.29437,3400.3,3400.0,4.5738]
[1735583611827,0.29436,3400.5,3400.0,4.5738]
[1735583612029,0.29434,3400.7,3400.0,7.40758095]
[1735583612328,0.29432,3400.8,3400.5,3.2078]
[1735583612518,0.29433,3400.7,3400.5,0.29435]
[1735583613032,0.29433,3400.8,3400.1,3.2078]
[1735583613326,0.29434,3400.6,3400.4,0.29435]
[1735583614328,0.5324,3400.9,3400.1,3.2078]
[1735583614829,0.5324,3400.9,3399.7,0.29442]
[1735583614830,0.29437,3400.2,3399.7,0.29442]
[1735583615026,1.0819,3400.1,3399.7,0.29442]
[1735583615229,1.0819,3400.1,3399.8,0.29441]
[1735583615431,0.2944,3399.9,3399.8,0.29441]
[1735583615722,0.2944,3399.9,3399.6,42.165]
[1735583615925,0.2944,3399.9,3399.7,0.29442]
[1735583616321,0.29441,3399.8,3399.7,0.29442]
[1735583616528,1.0819,3400.1,3399.6,42.165]
[1735583616723,0.29441,3399.8,3399.7,0.29441]
[1735583617126,0.29441,3399.8,3398.9,1.06261]
[1735583617127,0.29446,3399.2,3399.1,3.2078]
[1735583617325,3.94384,3399.8,3399.0,40.8]
[1735583617525,0.73609,3399.6,3399.0,40.8]
[1735583617726,0.29447,3399.1,3399.0,40.8]
[1735583618027,3.2078,3399.4,3398.9,1.65948]
[1735583618226,0.29448,3399.1,3399.0,0.29447]
[1735583618423,0.29444,3399.5,3399.4,0.29444]
[1735583618936,0.29443,3399.6,3399.5,0.29443]
[1735583619135,3.2078,3399.9,3399.1,40.8]
[1735583619328,0.29445,3399.4,3399.2,1.365]
[1735583619530,0.29444,3399.5,3399.3,0.29445]
[1735583619730,0.29444,3399.5,3399.4,0.29444]
[1735583620237,0.29444,3399.5,3399.2,1.365]
[1735583620432,3.2078,3399.9,3399.4,0.29444]
[1735583620433,0.5424,3399.8,3399.4,0.29444]
[1735583620639,0.29444,3399.5,3399.4,0.29444]
[1735583621541,3.2078,3399.9,3399.2,4.19878095]
[1735583621837,3.2078,3399.9,3399.3,0.73614]
[1735583622031,0.29439,3400.0,3399.4,3.9439]
[1735583622237,0.29439,3400.1,3399.9,0.2944]
[1735583622436,1.0414,3400.2,3400.0,0.29439]
[1735583622636,1.0414,3400.2,3399.6,2.36484072]
[1735583622833,0.29441,3399.9,3399.7,0.29442]
[1735583623034,0.29441,3399.9,3399.8,40.8]
[1735583623235,0.2944,3400.0,3399.8,41.09441]
[1735583623638,1.0414,3400.2,3399.8,40.8]
[1735583623832,0.82088,3400.2,3400.1,0.29438]
[1735583624039,0.5265,3400.2,3399.8,40.8]
[1735583624234,0.2944,3399.9,3399.8,40.8]
[1735583624632,0.29438,3400.1,3399.8,40.8]
[1735583624936,0.29438,3400.1,3400.0,0.29439]
[1735583625142,0.29438,3400.1,3399.9,0.2944]
[1735583625341,0.5265,3400.2,3399.8,40.8]
[1735583625641,0.29439,3400.1,3400.0,0.29439]
[1735583626142,0.82088,3400.2,3400.1,0.29438]
[1735583626438,0.82088,3400.2,3399.8,40.8]
[1735583626439,0.29439,3400.0,3399.8,41.0944]
[1735583626636,0.2944,3399.9,3399.8,41.0944]
[1735583626836,0.5424,3400.4,3399.8,40.8]
[1735583627032,2.82756456,3401.7,3400.8,0.29432]
[1735583627033,0.5194,3400.9,3400.8,0.29432]
[1735583627633,0.5194,3400.9,3400.5,1.365]
[1735583627838,0.5194,3400.9,3400.8,0.29432]
[1735583628342,0.81371,3400.9,3400.8,0.29432]
[1735583629837,0.5194,3400.9,3400.8,0.29432]
[1735583630143,0.81371,3400.9,3400.8,0.29432]
[1735583630532,0.5194,3400.9,3400.8,0.29432]
[1735583632239,3.2078,3401.3,3400.5,1.365]
[1735583632440,3.2078,3401.3,3401.2,0.29429]
[1735583632743,2.29680404,3402.0,3401.0,2.82756456]
[1735583632744,3.2078,3401.9,3401.1,0.73575]
[1735583633046,0.29425,3401.7,3401.5,0.29426]
[1735583635040,3.7615,3401.9,3401.4,1.363]
[1735583635241,0.29426,3401.5,3401.4,1.363]
[1735583635434,0.29426,3401.6,3401.4,1.363]
[1735583635635,3.7615,3401.9,3401.5,3.2078]
[1735583635636,0.5537,3401.9,3401.5,3.2078]
[1735583635841,0.5537,3401.9,3401.8,0.29424]
[1735583636239,0.5537,3401.9,3401.8,3.12180456]
[1735583636544,0.29421,3402.1,3401.8,2.82756456]
[1735583636749,0.29422,3402.0,3401.8,3.12179456]
[1735583637138,1.76115,3402.6,3401.9,0.29422]
[1735583637139,0.29421,3402.1,3401.9,0.29422]
[1735583637444,0.29419,3402.3,3402.2,2.82756456]
[1735583638942,0.29423,3401.9,3401.8,2.82756456]
[1735583639241,0.29425,3401.6,3401.5,4.5349298]
[1735583639446,0.29425,3401.6,3401.5,3.6972298]
[1735583640242,1.0699,3401.8,3401.5,3.6972298]
[1735583640443,1.0699,3401.8,3401.4,2.82756456]
[1735583640639,0.556,3401.8,3401.7,0.29425]
[1735583641845,0.29423,3402.0,3401.8,0.29423]
[1735583642050,0.29423,3402.0,3401.8,3.12179456]
[1735583642249,0.29423,3401.9,3401.8,2.82756456]
[1735583642451,1.24479,3402.4,3401.8,2.82756456]
[1735583642757,0.29423,3401.9,3401.8,2.82756456]
[1735583642958,0.5093,3402.4,3401.8,2.82756456]
[1735583643453,0.29422,3402.1,3401.9,0.29423]
[1735583643844,0.29421,3402.2,3402.0,0.29421]
[1735583644042,0.2942,3402.3,3402.1,0.29421]
[1735583644251,0.5093,3402.4,3402.2,2.36082916]
[1735583644452,3.2078,3403.2,3402.3,3.2078]
[1735583644656,0.29413,3403.0,3402.9,2.36082916]
[1735583644955,3.2078,3403.2,3403.1,0.29412]
[1735583645348,0.5526,3403.9,3403.0,1.362]
[1735583645653,3.39330404,3404.0,3403.7,2.36082916]
[1735583645950,2.29680404,3404.0,3403.9,0.29405]
[1735583646150,2.29680404,3404.0,3403.9,1.65605]
[1735583646356,2.29680404,3404.0,3403.9,4.47557407]
[1735583646850,0.29401,3404.5,3403.9,44.98152407]
[1735583647054,0.294,3404.6,3404.3,2.81952407]
[1735583647258,0.29401,3404.5,3404.3,2.81952407]
[1735583647748,2.29680404,3404.8,3404.3,2.81952407]
[1735583647950,2.29680404,3404.8,3403.9,44.98152407]
[1735583647951,0.29404,3404.1,3403.9,44.98152407]
[1735583648148,3.2078,3404.5,3403.9,4.18152407]
[1735583648658,0.29404,3404.1,3403.9,4.18152407]
[1735583648846,0.29401,3404.4,3403.9,4.18152407]
[1735583649046,0.29404,3404.1,3403.9,4.18152407]
[1735583649557,0.29405,3404.0,3403.9,4.18152407]
[1735583650663,0.29404,3404.1,3403.9,4.18152407]
[1735583650960,0.29405,3404.0,3403.9,4.18152407]
[1735583651255,0.5387,3404.4,3403.5,4.18152407]
[1735583651256,0.29408,3403.6,3403.5,4.18152407]
[1735583653352,0.29408,3403.6,3403.5,1.362]
[1735583653956,0.29408,3403.6,3402.8,3.2078]
[1735583653957,0.29415,3402.8,3402.5,0.29417]
[1735583654156,3.2078,3403.2,3402.3,1.362]
[1735583654361,0.29418,3402.4,3402.3,1.362]
[1735583654656,0.29424,3401.8,3401.7,1.362]
[1735583654856,0.29424,3401.8,3401.7,42.162]
[1735583655057,3.2078,3402.0,3401.2,7.64728]
[1735583655262,3.2078,3401.6,3401.1,2.81952407]
[1735583655458,0.2943,3401.2,3401.0,0.2943]